fUST/lending_fUST_20250821
["ID","MTS","AMOUNT","RATE_DAILY","PERIOD"]
[380451161,1755777043613,-166.7,0.000215,10]
[380451163,1755777043622,-408.0,0.00021767,2]
[380451165,1755777043632,-468.65899204,0.00021917,3]
[380451167,1755777043641,-113.34906722,0.00021917,3]
[380451484,1755777046614,-366.65093278,0.00021917,3]
[380451486,1755777046624,-1007.81,0.00021917,3]
[380451488,1755777046634,-480.0,0.00021917,3]
[380451490,1755777046643,-203.03278108,0.00021917,3]
[380451492,1755777046652,-420.31810949,0.00021917,3]
[380451494,1755777046669,-59.68189051,0.00021917,3]
[380451496,1755777046679,-480.0,0.00021917,3]
[380451498,1755777046689,-320.55352881,0.00021917,3]
[380451501,1755777046703,-159.44647119,0.00021917,3]
[380451503,1755777046713,-480.0,0.00021917,3]
[380451505,1755777046723,-151.0,0.00021917,2]
[380451506,1755777046733,-151.0,0.00021917,2]
[380451508,1755777046743,-480.0,0.00021917,3]
[380451510,1755777046753,-480.0,0.00021917,3]
[380451512,1755777046762,-382.45515287,0.00021917,3]
[380451514,1755777046771,-965.46,0.00021917,3]
[380451516,1755777046780,-480.0,0.00021917,3]
[380451518,1755777046790,-480.0,0.00021917,3]
[380451520,1755777046799,-480.0,0.00021917,3]
[380451522,1755777046808,-480.0,0.00021917,3]
[380451524,1755777046818,-151.0,0.00021917,2]
[380451526,1755777046827,-480.0,0.00021917,3]
[380451528,1755777046837,-480.0,0.00021917,3]
[380451530,1755777046846,-500.75965702,0.00021917,3]
[380451532,1755777046855,-480.0,0.00021917,3]
[380451534,1755777046865,-480.0,0.00021917,3]
[380451536,1755777046875,-480.0,0.00021917,3]
[380451538,1755777046885,-480.0,0.00021917,3]
[380451540,1755777046895,-480.0,0.00021917,3]
[380451542,1755777046904,-610.41885806,0.00021917,3]
[380451544,1755777046914,-480.0,0.00021917,3]
[380451546,1755777046923,-480.0,0.00021917,3]
[380451548,1755777046932,-480.0,0.00021917,3]
[380451550,1755777046941,-480.0,0.00021917,3]
[380451552,1755777046951,-480.0,0.00021917,3]
[380451554,1755777046961,-480.0,0.00021917,3]
[380451556,1755777046970,-480.0,0.00021917,3]
[380451558,1755777046979,-480.0,0.00021917,3]
[380451560,1755777046989,-480.0,0.00021917,3]
[380451562,1755777047001,-480.0,0.00021917,3]
[380451564,1755777047010,-1326.69,0.00021917,3]
[380451566,1755777047020,-151.0,0.00021917,2]
[380451568,1755777047030,-151.0,0.00021917,2]
[380451570,1755777047041,-500.0,0.00021917,3]
[380451572,1755777047050,-151.0,0.00021917,2]
[380451574,1755777047060,-480.0,0.00021917,3]
[380451576,1755777047069,-480.0,0.00021917,3]
[380451578,1755777047080,-151.0,0.00021917,2]
[380451580,1755777047090,-151.0,0.00021917,2]
[380451582,1755777047099,-442.55507911,0.00021917,3]
[380451584,1755777047108,-151.0,0.00021917,2]
[380451586,1755777047118,-151.0,0.00021917,2]
[380451588,1755777047126,-151.0,0.00021917,2]
[380451590,1755777047136,-151.0,0.00021917,2]
[380451592,1755777047145,-102.66034117,0.00021917,2]
[380451594,1755777047158,-97.89069883,0.00021917,2]
[380451596,1755777047168,-257.83377887,0.00021917,3]
[380452748,1755777059268,161.791715,0.00013699,2]
[380454361,1755777219774,3190.43177635,0.00019599,2]
[380454362,1755777219797,1809.56822365,0.00019599,2]
[380454363,1755777229039,298.26677152,0.00019599,2]
[380454364,1755777233000,-300.0,0.00021403,2]
[380454365,1755777233022,-191.06581033,0.00021404,2]
[380454366,1755777236481,-324.3541793,0.000199,2]
[380454367,1755777237972,5000.0,0.00019599,2]
[380454368,1755777285152,2892.16500483,0.00019599,2]
[380454369,1755777285174,2107.83499517,0.00019599,2]
[380454370,1755777301519,5000.0,0.00019599,2]
[380454371,1755777317866,2892.16500483,0.00019599,2]
[380454372,1755777317889,2107.83499517,0.00019599,2]
[380454373,1755777333798,5000.0,0.00019599,2]
[380454374,1755777345792,347.62157745,0.00027397,120]
[380454375,1755777350585,2892.16500483,0.00019599,2]
[380454376,1755777350608,2107.83499517,0.00019599,2]
[380454377,1755777351165,-201.04765892,0.00019767,2]
[380454378,1755777366269,5000.0,0.00019599,2]
[380454379,1755777382286,2892.16500483,0.00019599,2]
[380454380,1755777382311,2107.83499517,0.00019599,2]
[380454381,1755777420760,-295.07817937,0.000199,2]
[380454382,1755777423496,-101.46167136,0.000199,2]
[380454384,1755777535064,-206.91517266,0.00020835,2]
[380454385,1755777537155,-189.6246778,0.00020835,2]
[380454386,1755777537184,-50.63774783,0.00021046,2]
[380454387,1755777539331,-157.94036673,0.00021046,2]
[380454388,1755777541835,-200.0,0.00021046,2]
[380454389,1755777567321,-167.71874772,0.00021046,2]
[380454390,1755777570516,-244.61316998,0.000199,2]
[380454391,1755777573056,-40.01418083,0.000199,2]
[380454392,1755777573081,-284.62735057,0.00020835,2]
[380454393,1755777573105,-69.02146686,0.00021046,2]
[380454394,1755777742068,-188.98443159,0.000199,2]
[380454395,1755777743563,-76.66776243,0.000199,2]
[380454396,1755777743589,-129.0925655,0.00020835,2]
[380454397,1755777746984,-136.55962836,0.00020835,2]
[380454398,1755777747008,-21.07857932,0.00020836,2]
[380454399,1755777748689,-237.10655184,0.00020836,2]
[380454400,1755777752341,-180.18728878,0.00020836,2]
[380454401,1755777788860,-231.88663594,0.00020628,2]
[380454402,1755777792562,-394.74475952,0.00020628,2]
[380454403,1755777795339,-213.7163675,0.00020628,2]
[380454404,1755777798225,-313.68106929,0.00020628,2]
[380454405,1755777801896,-235.57658172,0.00020628,2]
[380454406,1755777803463,-172.74858224,0.00020628,2]
[380454407,1755777805946,-195.43037143,0.00020628,2]
[380454408,1755777807124,-176.43113628,0.00020628,2]
[380454409,1755777808860,-179.11559908,0.00020628,2]
[380454410,1755777812649,-236.02249694,0.00020628,2]
[380454411,1755777814142,-239.71332781,0.00020628,2]
[380454412,1755777816314,-349.90341106,0.00020628,2]
[380454413,1755777818805,-173.61685511,0.00020628,2]
[380454414,1755777820324,-197.59942239,0.00020628,2]
[380454415,1755777821972,-247.54462276,0.00020628,2]
[380454416,1755777825210,-203.27730318,0.00020369,2]
[380454417,1755777827612,-345.72276078,0.00020369,2]
[380454418,1755777830094,-217.71,0.00020369,2]
[380454419,1755777832849,-233.28993604,0.00020369,2]
[380454420,1755777832872,-65.10941793,0.00020628,2]
[380454421,1755777834404,-154.08709537,0.00020628,2]
[380454422,1755777842129,-163.3015328,0.00020628,2]
[380454423,1755777844269,-180.13495507,0.00020628,2]
[380454424,1755777852763,-280.23468969,0.00020628,2]
[380454425,1755777855924,-260.83522596,0.00020628,2]
[380454426,1755777917130,-151.15445482,0.000199,2]
[380454427,1755777918551,-96.78759286,0.000199,2]
[380454429,1755777984080,-346.00998611,0.00020422,2]
[380454430,1755777988885,-167.29397016,0.00020422,2]
[380454431,1755777990442,-244.1093505,0.00020422,2]
[380454432,1755777992617,-260.22348481,0.00020422,2]
[380454433,1755777994175,-241.56188835,0.00020422,2]
[380454434,1755777996326,-226.49401365,0.00020422,2]
[380454435,1755777998446,-175.82993515,0.00020422,2]
[380454436,1755778000488,-160.90880247,0.00020422,2]
[380454437,1755778003123,-394.74475952,0.00020422,2]
[380454438,1755778006399,-325.62114555,0.00020422,2]
[380454439,1755778008441,-168.62254977,0.00020422,2]
[380454440,1755778011510,-409.29752281,0.00020422,2]
[380454441,1755778015197,-168.44844187,0.00020422,2]
[380454442,1755778017898,-242.27305288,0.00020422,2]
[380454443,1755778021146,-206.41492206,0.00020422,2]
[380454444,1755778025348,-197.82070235,0.00020422,2]
[380454445,1755778027741,-179.26803089,0.00020422,2]
[380454446,1755778030933,-262.07965781,0.00020422,2]
[380454447,1755778032919,-251.03118481,0.00020422,2]
[380454448,1755778035584,-191.88637684,0.00020422,2]
[380454449,1755778037712,-171.73971442,0.00020422,2]
[380454450,1755778039738,-8.32050722,0.00020422,2]
[380454451,1755778039761,-247.94139196,0.00020467,2]
[380454453,1755778042780,-184.49605003,0.00020262,2]
[380454454,1755778044920,-256.67431204,0.00020262,2]
[380454455,1755778047511,-248.91952183,0.00020262,2]
[380454456,1755778049620,-314.07953963,0.00020262,2]
[380454457,1755778054306,-249.11963327,0.00020262,2]
[380454458,1755778057134,-424.06373269,0.00020262,2]
[380454459,1755778059881,-165.35138601,0.00020262,2]
[380454460,1755778061909,-440.7242219,0.00020262,2]
[380454461,1755778064603,-399.69533239,0.00020262,2]
[380454462,1755778067080,-259.61356107,0.00020262,2]
[380454463,1755778070284,-190.52140825,0.00020262,2]
[380454464,1755778072448,-300.0,0.00020262,2]
[380454465,1755778075678,-280.65913737,0.00020262,2]
[380454466,1755778077759,-347.43249248,0.00020262,2]
[380454467,1755778079344,-177.32089311,0.00020262,2]
[380454468,1755778083256,-245.21620298,0.00020262,2]
[380454469,1755778085687,-211.20282395,0.000199,2]
[380454470,1755778088127,-99.59013922,0.000199,2]
[380454471,1755778088150,-55.12644316,0.00020262,2]
[380454472,1755778090182,-254.82170582,0.00020262,2]
[380454473,1755778093051,-206.16442597,0.00020262,2]
[380454474,1755778093074,-28.85453063,0.00020367,2]
[380454475,1755778094647,-141.55770985,0.00020367,2]
[380454478,1755778214060,-205.6075306,0.0002015,2]
[380454479,1755778218397,-227.81384896,0.0002015,2]
[380454480,1755778220709,-35.03796444,0.0002015,2]
[380454500,1755778232742,-1067.46697318,0.00020261,2]
[380454502,1755778232753,-955.17464533,0.00020261,2]
[380454504,1755778232765,-435.28664968,0.00020261,2]
[380454506,1755778232775,-179.21106301,0.00020261,2]
[380454508,1755778232785,-5000.0,0.00020361,2]
[380454510,1755778232797,-1200.0,0.00020527,2]
[380454512,1755778232806,-3151.68707769,0.00020528,2]
[380454514,1755778232817,-857.18437779,0.00020528,2]
[380454516,1755778232827,-300.0,0.00020566,2]
[380454518,1755778232836,-355.8163908,0.00020567,2]
[380454520,1755778232845,-179.21106298,0.00020604,2]
[380454522,1755778232854,-205.01747555,0.00020736,2]
[380454524,1755778232863,-310.79296316,0.00020835,2]
[380454526,1755778232872,-179.21106298,0.00020946,2]
[380454528,1755778232882,-844.19128999,0.00021156,2]
[380454530,1755778232891,-216.95272161,0.00021156,2]
[380454532,1755778232900,-215.86710461,0.0002116,2]
[380454534,1755778232908,-1127.88619532,0.00021259,2]
[380454536,1755778232916,-179.21106298,0.00021289,2]
[380454538,1755778232925,-1918.72563417,0.0002129,2]
[380454540,1755778232936,-1200.0,0.00021389,2]
[380454542,1755778232945,-1727.541,0.00021389,2]
[380454543,1755778232954,-172.432,0.00021389,2]
[380454545,1755778232964,-763.60356542,0.00021389,2]
[380454548,1755778232975,-6394.61189786,0.00021389,2]
[380454638,1755778238938,-253.758242,0.0001975,2]
[380454639,1755778238948,-206.71173734,0.00019912,2]
[380454640,1755778238957,-5000.0,0.00021175,2]
[380454641,1755778238967,-42841.78453672,0.00021389,2]
[380454642,1755778238977,-500.0,0.0002139,2]
[380454643,1755778238990,-511.06429255,0.0002139,2]
[380454644,1755778239000,-511.06429255,0.0002139,2]
[380454645,1755778239012,-500.0,0.0002139,2]
[380454646,1755778239022,-511.06429255,0.0002139,2]
[380454647,1755778239031,-500.0,0.0002139,2]
[380454648,1755778239040,-511.06429255,0.0002139,2]
[380454649,1755778239052,-500.0,0.0002139,2]
[380454650,1755778239066,-500.0,0.0002139,2]
[380454651,1755778239076,-511.06429255,0.0002139,2]
[380454652,1755778239086,-210.02198283,0.0002139,2]
[380454653,1755778239095,-477.07567674,0.0002139,2]
[380454654,1755778239105,-511.06429255,0.0002139,2]
[380454655,1755778239114,-500.0,0.0002139,2]
[380454656,1755778239123,-312.69959866,0.0002139,2]
[380454657,1755778239137,-511.06429255,0.0002139,2]
[380454658,1755778239153,-511.06429255,0.0002139,2]
[380454659,1755778239163,-364.68301565,0.0002139,2]
[380454660,1755778239172,-511.06429255,0.0002139,2]
[380454661,1755778239181,-511.06429255,0.0002139,2]
[380454662,1755778239192,-511.06429255,0.0002139,2]
[380454663,1755778239206,-511.06429255,0.0002139,2]
[380454664,1755778239220,-511.06429255,0.0002139,2]
[380454665,1755778239229,-511.06429255,0.0002139,2]
[380454666,1755778239239,-511.06429255,0.0002139,2]
[380454667,1755778239248,-511.06429255,0.0002139,2]
[380454668,1755778239258,-511.06429255,0.0002139,2]
[380454669,1755778239267,-511.06429255,0.0002139,2]
[380454670,1755778239276,-511.06429255,0.0002139,2]
[380454671,1755778239286,-511.06429255,0.0002139,2]
[380454672,1755778239295,-511.06429255,0.0002139,2]
[380454673,1755778239305,-511.06429255,0.0002139,2]
[380454674,1755778239315,-511.06429255,0.0002139,2]
[380454675,1755778239323,-511.06429255,0.0002139,2]
[380454676,1755778239333,-511.06429255,0.0002139,2]
[380454677,1755778239342,-511.06429255,0.0002139,2]
[380454678,1755778239351,-511.06429255,0.0002139,2]
[380454679,1755778239360,-511.06429255,0.0002139,2]
[380454680,1755778239370,-511.06429255,0.0002139,2]
[380454681,1755778239379,-511.06429255,0.0002139,2]
[380454682,1755778239389,-511.06429255,0.0002139,2]
[380454683,1755778239399,-511.06429255,0.0002139,2]
[380454684,1755778239408,-511.06429255,0.0002139,2]
[380454685,1755778239418,-511.06429255,0.0002139,2]
[380454686,1755778239427,-511.06429255,0.0002139,2]
[380454687,1755778239436,-511.06429255,0.0002139,2]
[380454688,1755778239446,-511.06429255,0.0002139,2]
[380454689,1755778239455,-511.06429255,0.0002139,2]
[380454690,1755778239464,-511.06429255,0.0002139,2]
[380454691,1755778239473,-511.06429255,0.0002139,2]
[380454692,1755778239483,-511.06429255,0.0002139,2]
[380454693,1755778239492,-511.06429255,0.0002139,2]
[380454694,1755778239501,-511.06429255,0.0002139,2]
[380454695,1755778239510,-511.06429255,0.0002139,2]
[380454696,1755778239519,-511.06429255,0.0002139,2]
[380454697,1755778239528,-511.06429255,0.0002139,2]
[380454698,1755778239537,-511.06429255,0.0002139,2]
[380454699,1755778239546,-511.06429255,0.0002139,2]
[380454700,1755778239555,-511.06429255,0.0002139,2]
[380454701,1755778239565,-511.06429255,0.0002139,2]
[380454702,1755778239575,-511.06429255,0.0002139,2]
[380454703,1755778239584,-511.06429255,0.0002139,2]
[380454704,1755778239599,-511.06429255,0.0002139,2]
[380454705,1755778239609,-511.06429255,0.0002139,2]
[380454706,1755778239618,-511.06429255,0.0002139,2]
[380454707,1755778239628,-511.06429255,0.0002139,2]
[380454708,1755778239639,-511.06429255,0.0002139,2]
[380454709,1755778239648,-511.06429255,0.0002139,2]
[380454710,1755778239658,-511.06429255,0.0002139,2]
[380454711,1755778239667,-511.06429255,0.0002139,2]
[380454712,1755778239677,-511.06429255,0.0002139,2]
[380454713,1755778239687,-511.06429255,0.0002139,2]
[380454714,1755778239697,-511.06429255,0.0002139,2]
[380454715,1755778239707,-511.06429255,0.0002139,2]
[380454716,1755778239716,-511.06429255,0.0002139,2]
[380454717,1755778239726,-511.06429255,0.0002139,2]
[380454718,1755778239735,-511.06429255,0.0002139,2]
[380454719,1755778239745,-511.06429255,0.0002139,2]
[380454720,1755778239755,-511.06429255,0.0002139,2]
[380454721,1755778239764,-833.55,0.00021391,10]
[380454722,1755778239774,-1000.0,0.00021391,2]
[380454723,1755778239784,-1114.0,0.00021391,2]
[380454724,1755778239794,-151.0,0.00021391,2]
[380454725,1755778239803,-17842.522448,0.00021391,2]
[380454726,1755778239812,-159.15,0.00021394,3]
[380454727,1755778239821,-477.45,0.00021394,3]
[380454728,1755778239831,-500.0,0.00021401,2]
[380454729,1755778239840,-500.0,0.00021403,2]
[380454730,1755778239849,-500.0,0.00021403,2]
[380454731,1755778239859,-151.744069,0.00021404,2]
[380454732,1755778239869,-151.0,0.00021404,2]
[380454733,1755778239878,-153.600496,0.00021404,2]
[380454734,1755778239887,-151.0,0.00021404,2]
[380454735,1755778239897,-151.0,0.00021404,2]
[380454736,1755778239906,-151.0,0.00021404,2]
[380454737,1755778239915,-151.000001,0.00021404,2]
[380454738,1755778239925,-153.08576219,0.00021404,2]
[380454739,1755778239934,-151.0,0.00021404,2]
[380454740,1755778239946,-151.0,0.00021404,2]
[380454741,1755778239956,-151.30909357,0.00021404,2]
[380454742,1755778239965,-151.0,0.00021404,2]
[380454743,1755778239975,-151.0,0.00021404,2]
[380454744,1755778239984,-151.0,0.00021404,2]
[380454745,1755778240000,-151.0,0.00021404,2]
[380454746,1755778240017,-151.0,0.00021404,2]
[380454747,1755778240026,-151.0,0.00021404,2]
[380454748,1755778240035,-151.0,0.00021404,2]
[380454749,1755778240045,-151.0,0.00021404,2]
[380454750,1755778240055,-151.0,0.00021404,2]
[380454751,1755778240064,-151.0,0.00021404,2]
[380454752,1755778240073,-151.0,0.00021404,2]
[380454753,1755778240083,-151.37136605,0.00021404,2]
[380454754,1755778240093,-151.0,0.00021404,2]
[380454755,1755778240102,-151.0,0.00021404,2]
[380454757,1755778240112,-151.0,0.00021404,2]
[380454759,1755778240121,-230.211716,0.00021404,2]
[380454761,1755778240131,-151.0,0.00021404,2]
[380454778,1755778240320,-151.0,0.00021404,2]
[380454779,1755778240329,-151.0,0.00021404,2]
[380454780,1755778240339,-151.0,0.00021404,2]
[380454781,1755778240348,-151.0,0.00021404,2]
[380454782,1755778240357,-179.595668,0.00021404,2]
[380454783,1755778240367,-151.0,0.00021404,2]
[380454784,1755778240376,-151.0,0.00021404,2]
[380454785,1755778240385,-151.0,0.00021404,2]
[380454786,1755778240395,-151.0,0.00021404,2]
[380454787,1755778240404,-500.0,0.00021404,2]
[380454788,1755778240414,-151.0,0.00021404,2]
[380454789,1755778240423,-151.18160386,0.00021404,2]
[380454790,1755778240432,-151.0,0.00021404,2]
[380454791,1755778240443,-151.0,0.00021404,2]
[380454792,1755778240452,-151.0,0.00021404,2]
[380454793,1755778240462,-151.0,0.00021404,2]
[380454794,1755778240471,-151.0,0.00021404,2]
[380454795,1755778240480,-151.0,0.00021404,2]
[380454796,1755778240490,-151.0,0.00021404,2]
[380454797,1755778240501,-151.0,0.00021404,2]
[380454798,1755778240510,-151.0,0.00021404,2]
[380454799,1755778240520,-151.22664091,0.00021404,2]
[380454800,1755778240531,-151.0,0.00021404,2]
[380454801,1755778240541,-274.69903344,0.00021404,2]
[380454802,1755778240550,-151.29351082,0.00021404,2]
[380454803,1755778240561,-264.62832098,0.00021404,2]
[380454804,1755778240572,-151.41735249,0.00021404,2]
[380454805,1755778240581,-151.0,0.00021404,2]
[380454806,1755778240592,-151.0,0.00021404,2]
[380454807,1755778240603,-151.0,0.00021404,2]
[380454808,1755778240612,-151.0,0.00021404,2]
[380454809,1755778240621,-151.0,0.00021404,2]
[380454810,1755778240631,-151.0,0.00021404,2]
[380454811,1755778240641,-151.0,0.00021404,2]
[380454812,1755778240650,-282.232816,0.00021404,2]
[380454813,1755778240659,-254.854785,0.00021404,2]
[380454814,1755778240672,-151.0,0.00021404,2]
[380454815,1755778240683,-151.0,0.00021404,2]
[380454816,1755778240694,-151.0,0.00021404,2]
[380454817,1755778240704,-151.0,0.00021404,2]
[380454818,1755778240713,-151.0,0.00021404,2]
[380454819,1755778240722,-151.0,0.00021404,2]
[380454820,1755778240731,-151.0,0.00021404,2]
[380454821,1755778240740,-151.0,0.00021404,2]
[380454822,1755778240749,-151.0,0.00021404,2]
[380454823,1755778240758,-151.0,0.00021404,2]
[380454824,1755778240768,-151.0,0.00021404,2]
[380454825,1755778240778,-256.446142,0.00021404,2]
[380454826,1755778240787,-256.446142,0.00021404,2]
[380454827,1755778240796,-256.446142,0.00021404,2]
[380454828,1755778240804,-151.0,0.00021404,2]
[380454829,1755778240813,-256.446142,0.00021404,2]
[380454830,1755778240822,-151.0,0.00021404,2]
[380454831,1755778240833,-151.0,0.00021404,2]
[380454832,1755778240842,-151.0,0.00021404,2]
[380454833,1755778240851,-151.0,0.00021404,2]
[380454834,1755778240860,-151.0,0.00021404,2]
[380454835,1755778240869,-151.0,0.00021404,2]
[380454836,1755778240878,-151.0,0.00021404,2]
[380454837,1755778240888,-151.0,0.00021404,2]
[380454838,1755778240898,-151.0,0.00021404,2]
[380454839,1755778240908,-151.0,0.00021404,2]
[380454840,1755778240917,-151.0,0.00021404,2]
[380454841,1755778240927,-151.0,0.00021404,2]
[380454842,1755778240936,-151.0,0.00021404,2]
[380454843,1755778240946,-151.0,0.00021404,2]
[380454844,1755778240956,-151.0,0.00021404,2]
[380454845,1755778240965,-104304.48258872,0.00021404,2]
[380454846,1755778241718,-17066.3349494,0.00021404,2]
[380454847,1755778241728,-1161.5738829,0.000215,2]
[380454848,1755778241737,-232.28399145,0.00021506,2]
[380454849,1755778241746,-995.2649823,0.00021672,2]
[380454850,1755778241755,-500.0,0.00021677,2]
[380454851,1755778241764,-500.0,0.00021677,2]
[380454852,1755778241774,-151.0,0.00021678,2]
[380454853,1755778241783,-151.0,0.00021678,2]
[380454854,1755778241792,-151.24868481,0.00021678,2]
[380454855,1755778241801,-151.0,0.00021678,2]
[380454856,1755778241811,-151.0,0.00021678,2]
[380454857,1755778241823,-151.0,0.00021678,2]
[380454858,1755778241832,-245.1431519,0.00021678,2]
[380454859,1755778241841,-151.0,0.00021678,2]
[380454860,1755778241850,-539.56492559,0.00021678,2]
[380454861,1755778241860,-151.38080728,0.00021678,2]
[380454862,1755778241869,-151.0,0.00021678,2]
[380454863,1755778241878,-151.0,0.00021678,2]
[380454864,1755778241887,-151.0,0.00021678,2]
[380454865,1755778241896,-151.0,0.00021678,2]
[380454866,1755778241906,-151.0,0.00021678,2]
[380454867,1755778241916,-151.0,0.00021678,2]
[380454868,1755778241925,-151.0,0.00021678,2]
[380454869,1755778241934,-150.0,0.00021767,2]
[380454870,1755778241944,-973.0,0.00021767,2]
[380454871,1755778241953,-2154.0,0.00021767,2]
[380454872,1755778241962,-637.0,0.00021767,2]
[380454873,1755778241971,-310.79296316,0.00021771,2]
[380454874,1755778241980,-323.0,0.000218,6]
[380454875,1755778241990,-4097.8560946,0.0002181,2]
[380454876,1755778241999,-151.0,0.00021816,2]
[380454877,1755778242008,-151.0,0.00021816,2]
[380454878,1755778242017,-1000.0,0.00021817,2]
[380454879,1755778242026,-18120.93412827,0.00021817,3]
[380454880,1755778242035,-1306.4517766,0.00021817,2]
[380454881,1755778242045,-1500.0,0.00021844,2]
[380454882,1755778242054,-4000.0,0.00021896,3]
[380454883,1755778242063,-3000.0,0.000219,2]
[380454884,1755778242073,-250.0,0.000219,10]
[380454885,1755778242082,-3000.0,0.0002191,2]
[380454886,1755778242091,-227.516328,0.0002191,2]
[380454887,1755778242100,-151.0,0.0002191,2]
[380454888,1755778242109,-151.0,0.0002191,2]
[380454889,1755778242118,-151.0,0.0002191,2]
[380454890,1755778242127,-151.0,0.0002191,2]
[380454891,1755778242136,-558.82397288,0.00021917,2]
[380454892,1755778242145,-480.0,0.00021917,3]
[380454893,1755778242154,-1501.62,0.00021917,3]
[380454894,1755778242163,-480.0,0.00021917,3]
[380454895,1755778242172,-480.0,0.00021917,3]
[380454896,1755778242181,-480.0,0.00021917,3]
[380454897,1755778242191,-480.0,0.00021917,3]
[380454898,1755778242201,-840.68,0.00021917,3]
[380454899,1755778242210,-480.0,0.00021917,3]
[380454900,1755778242219,-480.0,0.00021917,3]
[380454901,1755778242228,-276.52936086,0.00021917,3]
[380454902,1755778243083,-203.47063914,0.00021917,3]
[380454903,1755778243093,-261.56024105,0.00021917,3]
[380454904,1755778243113,-218.43975895,0.00021917,3]
[380454905,1755778243122,-480.0,0.00021917,3]
[380454906,1755778243132,-480.0,0.00021917,3]
[380454907,1755778243141,-390.32851649,0.00021917,3]
[380454908,1755778243151,-38.20416587,0.00021917,3]
[380454933,1755778243679,-199.0,0.00021291,10]
[380454934,1755778243689,-976.7,0.00021394,10]
[380454935,1755778243700,-151.0,0.00021403,2]
[380454937,1755778243710,-443.000254,0.00021917,3]
[380454938,1755778243720,-480.0,0.00021917,3]
[380454939,1755778243729,-480.0,0.00021917,3]
[380454940,1755778243739,-480.0,0.00021917,3]
[380454941,1755778243748,-480.0,0.00021917,3]
[380454943,1755778243757,-480.0,0.00021917,3]
[380454944,1755778243767,-480.0,0.00021917,3]
[380454945,1755778243776,-480.0,0.00021917,3]
[380454946,1755778243786,-480.0,0.00021917,3]
[380454947,1755778243795,-480.0,0.00021917,3]
[380454948,1755778243804,-480.0,0.00021917,3]
[380454949,1755778243813,-480.0,0.00021917,3]
[380454950,1755778243822,-420.04475012,0.00021917,3]
[380454951,1755778243832,-480.0,0.00021917,3]
[380454952,1755778243841,-480.0,0.00021917,3]
[380454953,1755778243851,-480.0,0.00021917,3]
[380454954,1755778243860,-480.0,0.00021917,3]
[380454955,1755778243869,-480.0,0.00021917,3]
[380454957,1755778243878,-506.71098924,0.00021917,3]
[380454958,1755778243887,-332.32145193,0.00021917,3]
[380454959,1755778243897,-480.0,0.00021917,3]
[380454960,1755778243906,-480.0,0.00021917,3]
[380454961,1755778243915,-412.22256171,0.00021917,3]
[380454962,1755778243939,-68.93027603,0.00021917,3]
[380454963,1755778243949,-276.46463842,0.00021917,3]
[380454976,1755778246772,-198.0,0.00021403,2]
[380454977,1755778246781,-147.64257183,0.00021719,2]
[380454978,1755778246792,-260.35742817,0.00021719,2]
[380454979,1755778246802,-203.53536158,0.00021917,3]
[380454980,1755778246811,-480.0,0.00021917,3]
[380454981,1755778246820,-480.0,0.00021917,3]
[380454982,1755778246829,-480.0,0.00021917,3]
[380454983,1755778246838,-480.0,0.00021917,3]
[380454984,1755778246847,-480.0,0.00021917,3]
[380454985,1755778246857,-480.0,0.00021917,3]
[380454986,1755778246866,-480.0,0.00021917,3]
[380454987,1755778246875,-480.0,0.00021917,3]
[380454988,1755778246884,-559.47,0.00021917,3]
[380454989,1755778246893,-480.0,0.00021917,3]
[380454990,1755778246902,-243.03529255,0.00021917,3]
[380454991,1755778246912,-480.0,0.00021917,3]
[380454992,1755778246921,-480.0,0.00021917,3]
[380454993,1755778246930,-480.0,0.00021917,3]